bitfinex-derivatives/quotes_BNBF0:USTF0_20250101
["timestamp","ask_amount","ask_price","bid_price","bid_amount"]
[1735696219958,1.46951185,711.04,709.97,0.28170204]
[1735696220158,0.25907196,711.03,709.97,0.28170204]
[1735696222761,0.25907994,711.02,709.97,0.28170204]
[1735696222963,0.25907994,711.01,709.97,0.28170204]
[1735696223162,0.25907994,711.0,709.97,0.28170204]
[1735696223357,0.25910052,710.99,709.97,0.28170204]
[1735696223555,1.46951185,711.04,709.97,0.28170204]
[1735696223556,0.25910052,710.98,709.97,0.28170204]
[1735696223757,0.25910052,710.97,709.97,0.28170204]
[1735696223962,0.25910052,710.96,709.97,0.28170204]
[1735696224164,0.25910052,710.95,709.77,1.05465287]
[1735696224362,0.25910052,710.94,709.77,1.05465287]
[1735696224662,0.25910052,710.93,709.77,1.05465287]
[1735696224863,0.25910052,710.92,709.75,1.05465287]
[1735696225069,0.25910052,710.91,709.75,1.05465287]
[1735696225367,0.25910052,710.9,709.75,1.05465287]
[1735696225569,0.25910052,710.89,709.75,1.05465287]
[1735696225868,0.25910052,710.88,709.76,1.05465287]
[1735696226062,0.25910052,710.87,709.76,1.05465287]
[1735696226263,0.25910052,710.86,709.76,1.05465287]
[1735696226468,1.46951185,711.04,709.76,1.05465287]
[1735696226663,0.25911058,711.03,709.79,1.05465287]
[1735696227872,0.25911026,711.02,709.68,1.05465287]
[1735696228171,0.25911026,711.01,709.68,1.05465287]
[1735696228369,0.25911026,711.0,709.68,1.05465287]
[1735696228571,0.25911026,710.99,709.68,1.05465287]
[1735696228771,0.25911026,710.98,709.69,1.05465287]
[1735696228971,0.25911026,710.97,709.69,1.05465287]
[1735696229173,0.25911026,710.96,709.69,1.05465287]
[1735696229372,0.25911026,710.95,709.69,1.05465287]
[1735696229572,1.46983253,710.95,709.69,1.05465287]
[1735696229774,1.46983253,710.95,709.42,1.05465287]
[1735696229775,1.46983253,710.95,709.68,1.05465287]
[1735696230774,1.46983253,710.95,709.62,1.05465287]
[1735696231974,1.46983253,710.95,709.63,1.05465287]
[1735696233171,1.46983253,710.95,709.68,1.05465287]
[1735696234176,1.46983253,710.95,709.69,1.05465287]
[1735696234980,0.28124648,711.12,709.7,0.28180921]
[1735696235181,1.46968252,711.05,709.7,0.28180921]
[1735696236675,1.46968252,711.05,709.81,1.05465287]
[1735696237579,1.46968252,711.05,709.79,1.05465287]
[1735696238174,1.46968252,711.05,709.83,1.05465287]
[1735696239176,1.46968252,711.05,709.88,1.05465287]
[1735696240180,1.46968252,711.05,709.9,1.05465287]
[1735696242480,1.46968252,711.05,709.93,1.05465287]
[1735696243783,1.46968252,711.05,709.87,1.05465287]
[1735696244880,1.46968252,711.05,709.89,1.05465287]
[1735696245983,1.46968252,711.05,709.95,1.05465287]
[1735696246786,1.46968252,711.05,709.98,1.05465287]
[1735696248887,1.46968252,711.05,709.96,1.05465287]
[1735696249681,1.46968252,711.05,710.01,1.05465287]
[1735696250682,1.46968252,711.05,710.03,1.05465287]
[1735696251790,1.46968252,711.05,710.07,1.05465287]
[1735696254288,1.46968252,711.05,710.08,1.05465287]
[1735696255492,0.2590791,711.04,710.09,1.05465287]
[1735696256288,0.2590791,711.04,710.03,1.05465287]
[1735696256892,1.46968252,711.05,710.03,1.05465287]
[1735696257094,0.25907692,711.04,710.03,1.05465287]
[1735696257495,0.25907692,711.04,710.07,1.05465287]
[1735696258297,0.25907692,711.04,710.08,1.05465287]
[1735696259591,0.25907648,711.03,710.08,1.05465287]
[1735696259796,0.25907648,711.02,710.08,1.05465287]
[1735696259996,0.25907648,711.01,710.08,1.05465287]
[1735696260296,1.46968252,711.05,710.08,1.05465287]
[1735696260297,0.25907648,711.0,710.08,1.05465287]
[1735696260497,0.25907648,710.99,710.08,1.05465287]
[1735696260698,0.25907648,710.98,710.08,1.05465287]
[1735696260899,1.46968252,711.05,710.08,1.05465287]
[1735696261093,0.25907455,711.04,710.08,1.05465287]
[1735696261294,0.25907455,711.04,710.1,1.05465287]
[1735696261492,0.25907363,711.03,710.1,1.05465287]
[1735696261699,0.25907363,711.02,710.1,1.05465287]
[1735696261896,1.46968252,711.05,710.1,1.05465287]
[1735696262101,1.46968252,711.05,709.71,0.78779155]
[1735696262102,1.46968252,711.05,710.12,1.05465287]
[1735696263198,1.46968252,711.05,710.13,1.05465287]
[1735696265410,1.46968252,711.05,710.15,1.05465287]
[1735696266308,1.46968252,711.05,710.14,1.05465287]
[1735696267407,1.46968252,711.05,709.71,0.78779155]
[1735696267408,1.46968252,711.05,710.15,1.05465287]
[1735696268506,1.46968252,711.05,709.71,0.78779155]
[1735696268507,1.46968252,711.05,710.17,1.05465287]
[1735696269708,1.46968252,711.05,709.71,0.78779155]
[1735696269709,1.46968252,711.05,710.19,1.05465287]
[1735696270806,1.46968252,711.05,710.18,1.05465287]
[1735696271501,1.46968252,711.05,710.2,1.05465287]
[1735696271900,0.25903725,711.04,710.2,1.05465287]
[1735696272104,1.46968252,711.05,710.2,1.05465287]
[1735696272299,0.25904001,711.04,710.2,1.05465287]
[1735696272507,1.46968252,711.05,710.26,1.05465287]
[1735696272707,0.25903635,711.04,710.26,1.05465287]
[1735696273507,0.25903635,711.04,709.71,0.78779155]
[1735696273508,0.25903635,711.04,710.25,1.05465287]
[1735696274302,1.46968252,711.05,710.25,1.05465287]
[1735696274505,0.25904407,711.04,710.25,1.05465287]
[1735696274706,1.46968252,711.05,710.25,1.05465287]
[1735696274908,0.25905561,711.04,710.25,1.05465287]
[1735696275506,0.25905561,711.04,710.17,1.05465287]
[1735696276304,0.25905561,711.04,710.15,1.05465287]
[1735696277209,0.25905561,711.04,710.16,1.05465287]
[1735696277403,0.25906057,711.03,710.16,1.05465287]
[1735696277609,1.46968252,711.05,710.16,1.05465287]
[1735696277809,0.25905375,711.04,710.16,1.05465287]
[1735696278211,0.25905375,711.04,710.17,1.05465287]
[1735696280010,1.46968252,711.05,710.17,1.05465287]
[1735696280211,0.25906901,711.04,710.17,1.05465287]
[1735696280412,0.25906901,711.04,710.15,1.05465287]
[1735696281312,0.25906901,711.04,710.18,1.05465287]
[1735696285213,1.46968252,711.05,710.2,1.05465287]
[1735696285413,0.2590627,711.04,710.2,1.05465287]
[1735696286114,1.46968252,711.05,710.2,1.05465287]
[1735696286115,0.25906188,711.03,710.2,1.05465287]
[1735696286313,0.25906188,711.02,710.24,1.05465287]
[1735696286511,1.46968252,711.05,710.24,1.05465287]
[1735696287313,0.25911421,711.04,710.24,1.05465287]
[1735696287714,0.25911421,711.04,709.98,1.05465287]
[1735696287916,1.46968252,711.05,709.98,1.05465287]
[1735696288109,0.25911662,711.04,709.98,1.05465287]
[1735696288609,0.25911662,711.04,709.1,2.15324961]
[1735696288610,0.25911177,711.03,709.88,1.05465287]
[1735696288814,1.46968252,711.05,709.88,1.05465287]
[1735696289014,0.25911319,711.04,709.88,1.05465287]
[1735696289916,0.25911319,711.04,709.89,1.05465287]
[1735696290614,0.25911828,711.03,709.89,1.05465287]
[1735696290815,0.25911828,711.02,710.0,1.05465287]
[1735696291015,0.25911828,711.01,710.0,1.05465287]
[1735696291217,0.25911828,711.0,710.0,1.05465287]
[1735696291515,0.25911828,710.99,710.0,1.05465287]
[1735696291712,0.25911828,710.98,709.97,1.05465287]
[1735696292015,0.25911828,710.97,709.97,1.05465287]
[1735696292212,0.25911828,710.96,709.97,1.05465287]
[1735696292413,0.25911828,710.95,709.97,1.05465287]
[1735696292617,0.25911828,710.94,709.93,1.05465287]
[1735696292817,0.25911828,710.93,709.93,1.05465287]
[1735696293111,1.75104006,710.97,709.93,1.05465287]
[1735696293318,0.25912607,710.96,709.93,1.05465287]
[1735696293516,0.25912607,710.96,709.92,1.05465287]
[1735696294716,0.25912607,710.96,709.68,1.05465287]
[1735696294717,0.25912607,710.96,709.83,1.05465287]
[1735696295812,0.25912607,710.96,709.81,1.05465287]
[1735696296013,0.25913188,710.95,709.81,1.05465287]
[1735696296318,1.75104006,710.97,709.81,1.05465287]
[1735696296512,0.25912415,710.96,709.81,1.05465287]
[1735696296718,0.25912415,710.96,709.77,1.05465287]
[1735696298617,0.25912874,710.95,709.77,1.05465287]
[1735696298922,0.25912874,710.94,709.77,1.05465287]
[1735696299122,0.25912874,710.93,709.77,1.05465287]
[1735696299322,0.25912874,710.92,709.77,1.05465287]
[1735696299523,1.75104006,710.97,709.7,1.33646208]
[1735696299723,0.25913866,710.96,709.7,1.33646208]
[1735696301220,0.25913855,710.95,709.7,1.33646208]
[1735696301424,1.75104006,710.97,709.7,1.33646208]
[1735696301821,0.25912317,710.96,709.7,1.33646208]
[1735696302027,0.25912311,710.95,709.7,1.33646208]
[1735696302223,0.25912311,710.94,709.7,1.33646208]
[1735696302423,0.25912311,710.93,709.7,1.33646208]
[1735696302725,1.75104006,710.97,709.7,1.33646208]
[1735696302927,0.25912193,710.96,709.7,1.33646208]
[1735696303125,0.25912193,710.96,709.77,1.05465287]
[1735696303928,1.75104006,710.97,709.77,1.05465287]
[1735696304128,1.75104006,710.97,709.7,0.28180921]
[1735696304129,0.25912709,710.96,709.75,1.05465287]
[1735696304831,1.75104006,710.97,709.75,1.05465287]
[1735696305726,0.2591261,710.96,709.75,1.05465287]
[1735696306131,1.75104006,710.97,709.74,1.05465287]
[1735696306926,1.75104006,710.97,709.76,1.05465287]
[1735696308033,1.75104006,710.97,709.75,1.05465287]
[1735696308532,0.25912129,710.96,709.75,1.05465287]
[1735696309439,0.25912129,710.96,709.79,1.05465287]
[1735696309836,0.25912129,710.96,709.81,1.05465287]
[1735696310035,0.25912279,710.95,709.81,1.05465287]
[1735696310332,0.25912279,710.94,709.81,1.05465287]
[1735696310536,1.75104006,710.97,709.81,1.05465287]
[1735696310537,0.25912279,710.93,709.81,1.05465287]
[1735696310732,0.25912279,710.92,709.81,1.05465287]
[1735696310936,0.25912279,710.91,709.82,1.05465287]
[1735696311231,0.25912279,710.9,709.82,1.05465287]
[1735696311436,0.25912279,710.89,709.82,1.05465287]
[1735696311637,0.28130582,710.97,709.82,1.05465287]
[1735696311832,1.46977045,710.89,709.82,1.05465287]
[1735696312835,1.46977045,710.89,709.83,1.05465287]
[1735696313034,0.25913965,710.88,709.83,1.05465287]
[1735696313838,0.25913965,710.88,709.81,1.05465287]
[1735696314338,0.25913965,710.88,709.87,1.05465287]
[1735696315137,1.46977045,710.89,709.87,1.05465287]
[1735696315339,0.25914703,710.88,709.87,1.05465287]
[1735696316242,0.25914703,710.88,709.88,1.05465287]
[1735696317544,0.25914703,710.88,709.9,1.05465287]
[1735696317938,0.2591381,710.87,709.9,1.05465287]
[1735696318143,0.25914462,710.86,709.9,1.05465287]
[1735696318344,0.25914462,710.85,709.9,1.05465287]
[1735696318546,0.25914462,710.84,709.84,1.05465287]
[1735696318744,1.46977045,710.89,709.84,1.05465287]
[1735696318944,0.25916461,710.88,709.84,1.05465287]
[1735696319447,0.25916461,710.88,709.77,1.05465287]
[1735696320241,0.28134539,710.87,709.77,1.05465287]
[1735696320443,0.25916461,710.86,709.77,1.05465287]
[1735696320746,0.25919318,710.85,709.77,1.05465287]
[1735696320937,0.25919318,710.84,709.77,1.05465287]
[1735696321138,0.25919318,710.83,709.77,1.05465287]
[1735696321340,0.25919318,710.82,709.77,1.05465287]
[1735696321536,0.25919318,710.81,709.77,1.05465287]
[1735696321742,0.25919318,710.8,709.76,1.05465287]
[1735696321942,0.25919318,710.79,709.76,1.05465287]
[1735696322141,0.25919318,710.78,709.76,1.05465287]
[1735696322744,0.25919318,710.78,709.74,1.05465287]
[1735696323147,0.25919794,710.77,709.74,1.05465287]
[1735696323349,0.25919794,710.76,709.74,1.05465287]
[1735696323548,0.25919794,710.75,709.74,1.05465287]
[1735696323750,0.25919794,710.74,709.74,1.05465287]
[1735696323950,0.25919794,710.73,709.74,1.05465287]
[1735696324141,1.47009125,710.79,709.74,1.05465287]
[1735696324142,0.25919989,710.72,709.74,1.05465287]
[1735696324343,0.25919989,710.71,709.74,1.05465287]
[1735696324649,0.25919989,710.7,709.74,1.05465287]
[1735696324849,0.25919989,710.69,709.74,1.05465287]
[1735696325048,0.25919989,710.68,709.74,1.05465287]
[1735696325250,0.2592021,710.67,709.71,1.05465287]
[1735696325448,0.25921335,710.66,709.71,1.05465287]
[1735696325648,0.25921335,710.65,709.71,1.05465287]
[1735696325848,0.25921335,710.64,709.71,1.05465287]
[1735696326050,0.25921335,710.63,709.71,1.05465287]
[1735696326243,0.54065772,710.62,709.71,1.05465287]
[1735696326448,0.54066168,710.61,709.63,1.05465287]
[1735696326648,0.25921335,710.6,709.63,1.05465287]
[1735696327152,0.28145625,710.59,709.63,1.05465287]
[1735696327345,0.25921335,710.58,709.63,1.05465287]
[1735696327547,0.25921335,710.58,708.97,2.15324961]
[1735696327548,0.28146417,710.57,709.54,1.05465287]
[1735696327744,0.25921335,710.56,709.54,1.05465287]
[1735696327943,0.2592968,710.55,709.54,1.05465287]
[1735696328547,0.28148002,710.53,709.54,1.05465287]
[1735696328749,0.2592968,710.52,709.32,1.05465287]
[1735696329451,0.2814919,710.5,709.32,1.05465287]
[1735696329649,0.2592968,710.49,709.32,1.05465287]
[1735696330150,0.28150379,710.47,709.32,1.05465287]
[1735696330351,0.2592968,710.46,709.02,1.05465287]
[1735696330651,0.28151568,710.44,709.02,1.05465287]
[1735696330844,0.2592968,710.43,709.02,1.05465287]
[1735696331049,0.28152756,710.41,709.02,1.05465287]
[1735696331249,0.2592968,710.4,709.02,1.05465287]
[1735696331450,0.2592968,710.4,708.59,1.05465287]
[1735696331952,0.28153945,710.38,708.59,1.05465287]
[1735696332252,0.2592968,710.37,708.41,1.05465287]
[1735696332453,1.73108748,710.37,708.42,0.28231839]
[1735696332650,0.2592968,710.36,708.42,0.28231839]
[1735696333052,1.47179068,710.37,708.42,0.28231839]
[1735696333352,0.25946562,710.36,708.42,0.28231839]
[1735696333552,0.25946562,710.35,708.42,0.28231839]
[1735696333748,0.25946562,710.34,708.42,0.28231839]
[1735696334053,0.25946562,710.33,708.43,1.05465287]
[1735696334244,0.25946562,710.32,708.43,1.05465287]
[1735696334444,0.25946562,710.31,708.43,1.05465287]
[1735696334645,0.25946562,710.3,708.43,1.05465287]
[1735696334846,0.25946562,710.29,708.43,1.05465287]
[1735696335152,0.25946562,710.28,708.43,1.05465287]
[1735696335350,1.47179068,710.37,708.42,0.28231839]
[1735696335351,0.25946562,710.27,708.42,0.28231839]
[1735696335546,0.25946562,710.26,708.42,0.28231839]
[1735696335749,0.25946562,710.25,708.42,0.28231839]
[1735696335951,0.25946562,710.24,708.42,0.28231839]
[1735696336151,0.25946562,710.23,708.42,0.28231839]
[1735696336352,0.25946562,710.22,708.42,0.28231839]
[1735696336547,0.25946562,710.21,708.42,0.28231839]
[1735696336751,0.25946562,710.2,708.42,0.28231839]
[1735696336951,0.25946562,710.19,708.42,0.28231839]
[1735696337151,0.25946562,710.18,708.42,0.28231839]
[1735696337347,0.25946562,710.17,708.42,0.28231839]
[1735696337551,0.25946562,710.16,708.42,0.28231839]
[1735696337751,0.25946562,710.15,708.42,0.28231839]
[1735696337952,0.25946562,710.14,708.42,0.28231839]
[1735696338155,1.47179068,710.37,708.42,0.28231839]
[1735696338349,0.25954474,710.36,708.42,0.28231839]
[1735696338553,0.25954474,710.35,708.42,0.28231839]
[1735696338755,1.47179068,710.37,708.42,0.28231839]
[1735696338756,0.25954474,710.34,708.42,0.28231839]
[1735696338955,1.47179068,710.37,708.42,0.28231839]
[1735696339153,0.25957072,710.36,708.42,0.28231839]
[1735696339353,0.25957072,710.35,708.42,0.28231839]
[1735696339547,0.25957072,710.34,708.42,0.28231839]
[1735696339748,0.25957072,710.33,708.42,0.28231839]
[1735696339954,0.25957072,710.32,708.42,0.28231839]
[1735696340153,0.25957072,710.31,708.42,0.28231839]
[1735696340353,0.25957072,710.3,708.42,0.28231839]
[1735696340552,0.25957072,710.29,708.42,0.28231839]
[1735696340752,0.25957072,710.28,708.42,0.28231839]
[1735696340953,1.47179068,710.37,708.42,0.28231839]
[1735696341149,0.25957569,710.36,708.42,0.28231839]
[1735696341348,0.25957569,710.35,708.42,0.28231839]
[1735696341549,0.25957569,710.34,708.42,0.28231839]
[1735696341753,0.25957569,710.33,708.42,0.28231839]
[1735696341954,0.25957569,710.32,708.42,0.28231839]
[1735696342157,0.25957569,710.31,708.42,0.28231839]
[1735696342454,0.25957569,710.3,708.42,0.28231839]
[1735696342655,0.25957569,710.29,708.42,0.28231839]
[1735696342852,0.25957569,710.28,708.42,0.28231839]
[1735696343051,0.25957569,710.27,708.42,0.28231839]
[1735696343251,0.25957569,710.26,708.42,0.28231839]
[1735696343455,0.25957569,710.25,708.42,0.28231839]
[1735696343654,0.25961356,710.24,708.42,0.28231839]
[1735696343853,0.25961356,710.23,708.42,0.28231839]
[1735696344050,0.25961356,710.22,708.42,0.28231839]
[1735696344357,0.25961356,710.21,708.42,0.28231839]
[1735696344557,0.25961356,710.2,708.42,0.28231839]
[1735696344748,0.25961356,710.19,707.43,1.05465287]
[1735696344953,0.25961356,710.18,707.55,0.28266553]
[1735696345153,0.25961356,710.17,707.55,0.28266553]
[1735696345355,0.25961356,710.16,707.55,0.28266553]
[1735696345656,0.25961356,710.15,707.55,0.28266553]
[1735696345856,0.25961356,710.14,707.55,0.28266553]
[1735696346050,0.90311438,710.13,707.55,0.28266553]
[1735696346249,0.90325303,710.12,707.55,0.28266553]
[1735696346453,0.90325303,710.11,707.55,0.28266553]
[1735696346653,0.90325303,710.1,707.55,0.28266553]
[1735696346853,0.90325303,710.09,707.55,0.28266553]
[1735696347056,0.90325303,710.08,707.55,0.28266553]
[1735696347259,0.90325303,710.07,707.55,0.28266553]
[1735696347458,0.90325303,710.06,707.55,0.28266553]
[1735696347667,1.47277171,710.28,707.55,0.28266553]
[1735696347668,0.90325303,710.05,707.55,0.28266553]
[1735696347863,0.90325303,710.04,707.55,0.28266553]
[1735696348166,0.25965821,710.03,707.55,0.28266553]
[1735696348468,0.90325303,710.02,707.55,0.28266553]
[1735696348667,0.25965821,710.01,707.55,0.28266553]
[1735696348964,0.25967524,710.0,707.55,0.28266553]
[1735696349166,1.47277171,710.28,707.55,0.28266553]
[1735696349167,0.25967524,709.99,707.55,0.28266553]
[1735696349361,0.25967524,709.98,707.55,0.28266553]
[1735696349560,0.25967524,709.97,707.55,0.28266553]
[1735696349766,0.25967524,709.96,707.55,0.28266553]
[1735696349967,0.25967524,709.95,707.55,0.28266553]
[1735696350270,0.25967524,709.94,707.55,0.28266553]
[1735696350472,0.25967524,709.93,707.55,0.28266553]
[1735696350769,0.25967524,709.92,707.55,0.28266553]
[1735696350972,0.25967524,709.91,707.55,0.28266553]
[1735696351173,0.25967524,709.9,707.55,0.28266553]
[1735696351370,1.47277171,710.28,707.55,0.28266553]
[1735696351671,0.90335616,710.27,707.55,0.28266553]
[1735696351868,0.90335616,710.26,707.55,0.28266553]
[1735696352070,0.90335616,710.25,707.55,0.28266553]
[1735696352267,0.90335616,710.24,707.55,0.28266553]
[1735696352470,0.90335616,710.23,707.55,0.28266553]
[1735696352769,0.90335616,710.22,707.55,0.28266553]
[1735696352970,0.90335616,710.21,707.55,0.28266553]
[1735696353169,0.90335616,710.2,707.55,0.28266553]
[1735696353368,0.90335616,710.19,707.55,0.28266553]
[1735696353567,0.90335616,710.18,707.55,0.28266553]
[1735696353766,0.90335616,710.17,707.55,0.28266553]
[1735696353965,1.47322374,710.19,707.55,0.28266553]
[1735696354164,0.90351783,710.18,707.55,0.28266553]
[1735696354365,0.90351783,710.17,707.55,0.28266553]
[1735696354565,0.90351783,710.16,707.55,0.28266553]
[1735696354765,1.47322374,710.19,707.55,0.28266553]
[1735696354965,0.90349579,710.18,707.55,0.28266553]
[1735696355171,0.90349579,710.17,707.55,0.28266553]
[1735696355371,0.90349579,710.16,707.55,0.28266553]
[1735696355674,0.90349579,710.15,707.55,0.28266553]
[1735696355873,0.90349579,710.14,707.55,0.28266553]
[1735696356067,0.90349579,710.13,707.55,0.28266553]
[1735696356267,0.90349579,710.12,707.55,0.28266553]
[1735696356472,0.90349579,710.11,707.55,0.28266553]
[1735696356673,0.9035528,710.1,707.55,0.28266553]
[1735696356969,0.9035528,710.09,707.55,0.28266553]
[1735696357168,0.9035528,710.08,707.55,0.28266553]
[1735696357373,0.9035528,710.07,707.55,0.28266553]
[1735696357673,0.9035528,710.06,707.55,0.28266553]
[1735696357876,0.9035528,710.05,707.55,0.28266553]
[1735696358175,0.9035528,710.04,707.55,0.28266553]
[1735696358373,0.9035528,710.03,707.55,0.28266553]
[1735696358574,0.9035528,710.02,707.55,0.28266553]
[1735696358774,0.9035528,710.01,707.55,0.28266553]
[1735696358968,0.9035528,710.0,707.55,0.28266553]
[1735696359173,1.47322374,710.19,707.55,0.28266553]
[1735696359369,0.90375179,710.18,707.55,0.28266553]
[1735696359574,0.90375179,710.17,707.55,0.28266553]
[1735696359778,1.47322374,710.19,707.55,0.28266553]
[1735696359779,0.90375179,710.16,707.55,0.28266553]
[1735696360075,0.90375179,710.15,707.55,0.28266553]
[1735696360270,0.90375179,710.14,707.55,0.28266553]
[1735696360470,0.90375179,710.13,707.55,0.28266553]
[1735696360669,0.90375179,710.12,707.55,0.28266553]
[1735696360873,0.90375179,710.11,707.55,0.28266553]
[1735696361073,0.90375179,710.1,707.55,0.28266553]
[1735696361270,0.90375179,710.09,707.55,0.28266553]
[1735696361575,0.25982061,710.08,707.55,0.28266553]
[1735696361774,1.47322374,710.19,707.55,0.28266553]
[1735696361971,0.64380929,710.17,707.55,0.28266553]
[1735696362275,0.25976075,710.16,707.55,0.28266553]
[1735696362477,1.47322374,710.19,707.55,0.28266553]
[1735696362680,0.25980066,710.18,707.55,0.28266553]
[1735696362873,0.25980066,710.17,707.55,0.28266553]
[1735696363074,0.25980066,710.16,707.55,0.28266553]
[1735696363370,1.47322374,710.19,707.55,0.28266553]
[1735696363371,0.25980066,710.15,707.55,0.28266553]
[1735696363573,0.25980066,710.14,707.55,0.28266553]
[1735696363770,0.25980066,710.13,707.55,0.28266553]
[1735696363970,0.25980066,710.12,707.55,0.28266553]
[1735696364169,0.25980066,710.11,707.55,0.28266553]
[1735696364374,0.25980066,710.1,707.55,0.28266553]
[1735696364574,0.25980066,710.09,707.55,0.28266553]
[1735696364875,0.25980066,710.08,707.55,0.28266553]
[1735696365076,0.25980066,710.07,707.55,0.28266553]
[1735696365271,0.25980066,710.06,707.55,0.28266553]
[1735696365474,0.25980066,710.05,707.55,0.28266553]
[1735696365675,0.25980066,710.04,707.55,0.28266553]
[1735696365876,0.25980066,710.03,707.55,0.28266553]
[1735696366178,0.25980066,710.02,707.55,0.28266553]
[1735696366372,0.25980066,710.01,707.55,0.28266553]
[1735696366572,0.25980066,710.0,707.55,0.28266553]
[1735696366775,0.25980066,709.99,707.55,0.28266553]
[1735696366976,1.47372284,710.1,707.55,0.28266553]
[1735696367172,0.25989491,710.09,707.55,0.28266553]
[1735696367477,0.90397921,710.08,707.55,0.28266553]
[1735696367674,0.90397921,710.07,707.55,0.28266553]
[1735696367875,0.90397921,710.06,707.55,0.28266553]
[1735696368177,0.90397921,710.05,707.55,0.28266553]
[1735696368377,0.90397921,710.04,707.55,0.28266553]
[1735696368570,0.25989491,710.03,707.55,0.28266553]
[1735696368777,0.90397921,710.02,707.55,0.28266553]
[1735696368972,0.25989491,710.01,707.55,0.28266553]
[1735696369175,0.25989491,710.0,707.55,0.28266553]
[1735696369375,0.25989491,709.99,707.55,0.28266553]
[1735696369572,1.47372284,710.1,707.55,0.28266553]
[1735696369776,0.25989211,710.09,707.55,0.28266553]
[1735696369986,0.25989211,710.08,707.55,0.28266553]
[1735696370178,0.25989211,710.07,707.55,0.28266553]
[1735696370377,0.25989211,710.06,707.55,0.28266553]
[1735696370683,0.25989211,710.05,707.55,0.28266553]
[1735696370874,0.25989211,710.04,707.55,0.28266553]
[1735696371078,0.25989211,710.03,707.55,0.28266553]
[1735696371277,0.25989211,710.02,707.55,0.28266553]
[1735696371478,0.25989211,710.01,707.55,0.28266553]
[1735696371675,0.25989211,710.0,707.55,0.28266553]
[1735696371872,1.47372284,710.1,707.55,0.28266553]
[1735696371873,0.25989211,709.99,707.55,0.28266553]
[1735696372077,0.25989211,709.98,707.55,0.28266553]
[1735696372274,1.47372284,710.1,707.55,0.28266553]
[1735696372473,0.25979188,710.09,707.55,0.28266553]
[1735696372673,0.25979188,710.08,707.55,0.28266553]
[1735696372881,0.25979188,710.07,707.55,0.28266553]
[1735696373078,0.25979188,710.06,707.55,0.28266553]
[1735696373278,0.25979188,710.05,707.55,0.28266553]
[1735696373481,0.25979188,710.04,707.55,0.28266553]
[1735696373681,1.47372284,710.1,707.55,0.28266553]
[1735696373682,0.90366415,710.03,707.55,0.28266553]
[1735696373873,0.90366415,710.02,707.55,0.28266553]
[1735696374077,0.25979188,710.01,707.55,0.28266553]
[1735696374279,0.25979188,710.0,707.55,0.28266553]
[1735696374476,0.25979188,709.99,707.55,0.28266553]
[1735696374674,0.25979188,709.98,707.61,1.05465287]
[1735696374877,0.25978361,709.97,707.61,1.05465287]
[1735696375078,0.25978361,709.96,707.61,1.05465287]
[1735696375275,0.25978361,709.95,707.61,1.05465287]
[1735696375473,0.25978361,709.94,707.64,1.05465287]
[1735696375680,0.25978361,709.93,707.64,1.05465287]
[1735696375979,0.25978361,709.92,707.64,1.05465287]
[1735696376280,0.25978361,709.91,707.64,1.05465287]
[1735696376480,0.25978361,709.9,707.71,1.05465287]
[1735696376685,0.25978361,709.89,707.71,1.05465287]
[1735696376873,0.25978361,709.88,707.71,1.05465287]
[1735696377079,0.25978361,709.87,707.71,1.05465287]
[1735696377379,1.47340046,709.98,707.71,1.05465287]
[1735696377681,0.25972443,709.97,707.71,1.05465287]
[1735696377883,1.47340046,709.98,707.56,0.78222374]
[1735696377884,0.25972443,709.96,707.72,1.05465287]
[1735696378082,0.25972443,709.95,707.72,1.05465287]
[1735696378282,1.47340046,709.98,707.72,1.05465287]
[1735696378283,0.25972077,709.94,707.72,1.05465287]
[1735696378481,0.25972077,709.93,707.72,1.05465287]
[1735696378784,0.25972077,709.92,707.82,1.05465287]
[1735696378978,0.25972077,709.91,707.82,1.05465287]
[1735696379184,0.25972077,709.9,707.82,1.05465287]
[1735696379482,0.25972077,709.9,707.56,0.78222374]
[1735696379483,0.25972077,709.89,707.94,1.05465287]
[1735696379683,0.25972077,709.88,707.94,1.05465287]
[1735696379983,0.25972077,709.87,707.94,1.05465287]
[1735696380187,0.25972091,709.86,707.94,1.05465287]
[1735696380385,0.25972091,709.85,707.96,1.05465287]
[1735696380586,0.25972091,709.84,707.96,1.05465287]
[1735696380785,0.25972091,709.83,707.96,1.05465287]
[1735696381084,0.25972091,709.82,707.96,1.05465287]
[1735696381279,0.25972091,709.81,707.96,1.05465287]
[1735696381480,0.25972091,709.8,707.99,1.05465287]
[1735696381682,0.25972091,709.79,707.99,1.05465287]
[1735696381881,0.25972091,709.78,707.99,1.05465287]
[1735696382082,0.25972091,709.77,707.99,1.05465287]
[1735696382283,0.25972091,709.76,708.01,1.05465287]
[1735696382479,0.25972091,709.75,708.01,1.05465287]
[1735696382786,0.25972091,709.74,708.01,1.05465287]
[1735696382987,0.25972091,709.73,708.01,1.05465287]
[1735696383286,1.47340046,709.98,708.01,1.05465287]
[1735696383287,0.25972091,709.72,708.01,1.05465287]
[1735696383488,0.25972091,709.71,707.98,1.05465287]
[1735696383782,0.25972091,709.7,707.98,1.05465287]
[1735696383987,0.25972091,709.69,707.98,1.05465287]
[1735696384288,0.25973915,709.68,707.96,1.05465287]
[1735696384489,0.25973915,709.67,707.96,1.05465287]
[1735696384687,1.47340046,709.98,707.96,1.05465287]
[1735696384688,0.25973915,709.66,707.96,1.05465287]
[1735696384879,0.25973915,709.65,707.96,1.05465287]